bitfinex/quotes_BTCUSD_20250713
["timestamp","ask_amount","ask_price","bid_price","bid_amount"]
[1752424370945,0.44729759,118600.0,118590.0,0.47308]
[1752424371375,0.44629759,118600.0,118590.0,0.47308]
[1752424371546,0.47157659,118600.0,118590.0,0.47308]
[1752424371747,0.47157659,118600.0,118590.0,0.47508]
[1752424374093,0.47157659,118600.0,118590.0,0.46278]
[1752424376694,0.51367659,118600.0,118590.0,0.46278]
[1752424377713,0.51047659,118600.0,118590.0,0.46278]
[1752424377939,0.49107659,118600.0,118590.0,0.46278]
[1752424379071,0.47157659,118600.0,118590.0,0.46278]
[1752424382622,0.51067659,118600.0,118590.0,0.46278]
[1752424383780,0.51387659,118600.0,118590.0,0.46278]
[1752424385977,0.42157659,118600.0,118590.0,0.57120993]
[1752424386190,0.01129759,118600.0,118590.0,0.57120993]
[1752424386395,0.05629759,118600.0,118590.0,0.57120993]
[1752424386530,0.045,118600.0,118590.0,0.57120993]
[1752424387785,0.01058589,118600.0,118590.0,0.57120993]
[1752424387975,0.045,118600.0,118590.0,0.57120993]
[1752424388383,0.045,118600.0,118590.0,0.54820993]
[1752424389065,0.045,118600.0,118590.0,0.57120993]
[1752424390239,0.045,118600.0,118590.0,0.56140993]
[1752424390436,0.05534819,118600.0,118590.0,0.54820993]
[1752424391002,0.39534819,118600.0,118590.0,0.54820993]
[1752424391204,0.43604819,118600.0,118590.0,0.54812993]
[1752424391762,0.39534819,118600.0,118590.0,0.54812993]
[1752424393331,0.39534819,118600.0,118590.0,0.56132993]
[1752424394501,0.35034819,118600.0,118590.0,0.56132993]
[1752424394709,0.05534819,118600.0,118590.0,0.57112993]
[1752424395099,0.01034819,118600.0,118590.0,0.57112993]
[1752424395311,0.045,118600.0,118590.0,0.57112993]
[1752424395960,0.045,118600.0,118590.0,0.54739615]
[1752424397627,0.0849,118600.0,118590.0,0.54739615]
[1752424398635,0.09553549,118600.0,118590.0,0.54739615]
[1752424399417,0.05053549,118600.0,118590.0,0.54739615]
[1752424399639,0.09553549,118600.0,118590.0,0.54739615]
[1752424401044,0.43553549,118600.0,118590.0,0.54739615]
[1752424403870,0.44058549,118600.0,118590.0,0.54739615]
[1752424405093,0.43850549,118600.0,118590.0,0.54739615]
[1752424409043,0.44049549,118600.0,118590.0,0.54739615]
[1752424409472,0.44049549,118600.0,118590.0,0.20444622]
[1752424409726,0.49049549,118600.0,118590.0,0.33328622]
[1752424409953,0.51577649,118600.0,118590.0,0.33328622]
[1752424411062,0.51577649,118600.0,118590.0,0.20444622]
[1752424411293,0.51577649,118600.0,118590.0,0.33332622]
[1752424421898,0.47091649,118600.0,118590.0,0.33332622]
[1752424422076,0.51081649,118600.0,118590.0,0.33332622]
[1752424423099,0.03591649,118600.0,118590.0,0.41875615]
[1752424423332,0.01063549,118600.0,118590.0,0.41875615]
[1752424423475,0.05563549,118600.0,118590.0,0.41875615]
[1752424423688,0.045,118600.0,118590.0,0.43195615]
[1752424423893,0.05580019,118600.0,118590.0,0.44175615]
[1752424424581,0.01080019,118600.0,118590.0,0.44175615]
[1752424424781,0.045,118610.0,118590.0,0.44175615]
[1752424425078,0.045,118610.0,118600.0,0.08753785]
[1752424425684,0.385,118610.0,118600.0,0.08753785]
[1752424425905,0.28163732,118630.0,118600.0,0.11053785]
[1752424426067,0.045,118620.0,118610.0,0.27096]
[1752424426288,0.045,118620.0,118610.0,0.35638993]
[1752424426493,0.3953939,118620.0,118610.0,0.34318993]
[1752424426707,0.4352939,118620.0,118610.0,0.34318993]
[1752424427468,0.4382639,118620.0,118610.0,0.34318993]
[1752424429000,0.3932639,118620.0,118610.0,0.34318993]
[1752424429257,0.4382639,118620.0,118610.0,0.34318993]
[1752424429729,0.4402539,118620.0,118610.0,0.34818993]
[1752424430806,0.4902539,118620.0,118610.0,0.26276]
[1752424431476,0.4902539,118620.0,118610.0,0.25976]
[1752424431710,0.4902539,118620.0,118610.0,0.25776]
[1752424431932,0.4902539,118620.0,118610.0,0.26076]
[1752424432626,0.5155299,118620.0,118610.0,0.26076]
[1752424433556,0.5155299,118620.0,118610.0,0.25976]
[1752424434702,0.5155299,118620.0,118610.0,0.25776]
[1752424446189,0.5660199,118620.0,118610.0,0.25776]
[1752424446397,0.5155299,118620.0,118610.0,0.25776]
[1752424451782,0.5155299,118620.0,118610.0,0.45976]
[1752424457961,0.5105699,118620.0,118610.0,0.45976]
[1752424458167,0.4852939,118620.0,118610.0,0.45976]
[1752424458365,0.5105689,118620.0,118610.0,0.45976]
[1752424459120,0.5136889,118620.0,118610.0,0.45976]
[1752424460845,0.4884139,118620.0,118610.0,0.45976]
[1752424461069,0.4206689,118620.0,118610.0,0.45976]
[1752424461285,0.3953939,118620.0,118610.0,0.45976]
[1752424461498,0.3953939,118620.0,118610.0,0.54518993]
[1752424461724,0.3953939,118620.0,118610.0,0.55838993]
[1752424461950,0.3503939,118620.0,118610.0,0.55838993]
[1752424462165,0.3953939,118620.0,118610.0,0.56818993]
[1752424462583,0.3953939,118620.0,118610.0,0.56918993]
[1752424462804,0.3953939,118620.0,118610.0,0.57118993]
[1752424465957,0.3953939,118620.0,118610.0,0.56138993]
[1752424468009,0.3503939,118620.0,118610.0,0.57118993]
[1752424468456,0.3953939,118620.0,118610.0,0.57118993]
[1752424469135,0.3953939,118620.0,118610.0,0.56138993]
[1752424470049,0.3503939,118620.0,118610.0,0.56138993]
[1752424470268,0.3953939,118620.0,118610.0,0.56138993]
[1752424471721,0.3953939,118620.0,118610.0,0.54818993]
[1752424472154,0.3503939,118620.0,118610.0,0.54818993]
[1752424472368,0.3953939,118620.0,118610.0,0.54818993]
[1752424472793,0.3953939,118620.0,118610.0,0.56138993]
[1752424473657,0.3953939,118620.0,118610.0,0.57118993]
[1752424473882,0.3503939,118620.0,118610.0,0.57118993]
[1752424474098,0.10014929,118630.0,118620.0,0.023]
[1752424474315,0.10014929,118630.0,118620.0,0.1105375]
[1752424474543,0.11035713,118630.0,118620.0,0.1105375]
[1752424475343,0.11035713,118630.0,118620.0,0.1125375]
[1752424477132,0.11035713,118630.0,118620.0,0.1135375]
[1752424478027,0.11035713,118630.0,118620.0,0.4507375]
[1752424478239,0.11035713,118630.0,118620.0,0.44862993]
[1752424480141,0.10014929,118630.0,118620.0,0.44862993]
[1752424481610,0.10014929,118630.0,118620.0,0.44662993]
[1752424481818,0.10014929,118630.0,118620.0,0.44562993]
[1752424482026,0.10014929,118630.0,118620.0,0.45262993]
[1752424483124,0.10004958,118630.0,118620.0,0.45262993]
[1752424491071,0.10004958,118630.0,118620.0,0.44282993]
[1752424492130,0.10004958,118630.0,118620.0,0.42962993]
[1752424499891,0.10004958,118630.0,118620.0,0.53462993]
[1752424504961,0.14054958,118630.0,118620.0,0.53462993]
[1752424505370,0.14054958,118630.0,118620.0,0.79186993]
[1752424506981,0.14554958,118630.0,118620.0,0.53462993]
[1752424507192,0.48554958,118630.0,118620.0,0.73654993]
[1752424507405,0.53054958,118630.0,118620.0,0.86514993]
[1752424507634,0.60581958,118630.0,118620.0,0.77972]
[1752424507879,0.60581958,118630.0,118620.0,0.65112]
[1752424508088,0.60581958,118630.0,118620.0,0.77672]
[1752424508532,0.60581958,118630.0,118620.0,0.77772]
[1752424509197,0.60581958,118630.0,118620.0,0.77672]
[1752424512101,0.60581958,118630.0,118620.0,0.77272]
[1752424512297,0.26581958,118630.0,118620.0,0.77272]
[1752424512500,0.26581958,118630.0,118620.0,0.77372]
[1752424512708,0.26581958,118630.0,118620.0,0.77272]
[1752424520212,0.26581958,118630.0,118620.0,0.66772]
[1752424526086,0.31634958,118630.0,118620.0,0.66772]
[1752424526343,0.26581958,118630.0,118620.0,0.66772]
[1752424533385,0.60581958,118630.0,118620.0,0.66772]
[1752424543384,0.55581958,118630.0,118620.0,0.66772]
[1752424543620,0.55081958,118630.0,118620.0,0.75314993]
[1752424543838,0.10004958,118630.0,118620.0,0.77194993]
[1752424544490,0.44004958,118630.0,118620.0,0.77194993]
[1752424544712,0.10004958,118630.0,118620.0,0.77194993]
[1752424545240,0.10004958,118630.0,118620.0,0.77294993]
[1752424545645,0.10004958,118630.0,118620.0,0.77394993]
[1752424552670,0.09163423,118630.0,118620.0,0.78849078]
[1752424553137,0.08321888,118630.0,118620.0,0.78849078]
[1752424553352,0.08321888,118630.0,118620.0,0.78749078]
[1752424553614,0.07480353,118630.0,118620.0,0.78749078]
[1752424553856,0.07480353,118630.0,118620.0,0.78949078]
[1752424554123,0.07480353,118630.0,118620.0,0.79349078]
[1752424556883,0.06639016,118630.0,118620.0,0.79349078]
[1752424557385,0.05797679,118630.0,118620.0,0.79349078]
[1752424557924,0.05797679,118630.0,118620.0,0.89849078]
[1752424561716,0.04956226,118630.0,118620.0,0.89849078]
[1752424562834,0.04956226,118630.0,118620.0,0.87969078]
[1752424563511,0.04956226,118630.0,118620.0,0.86514993]
[1752424563725,0.09504226,118630.0,118620.0,0.86514993]
[1752424564591,0.09504226,118630.0,118620.0,0.86214993]
[1752424565041,0.09504226,118630.0,118620.0,0.86014993]
[1752424565483,0.09504226,118630.0,118620.0,0.86214993]
[1752424569189,0.09504226,118630.0,118620.0,0.86014993]
[1752424569427,0.09504226,118630.0,118620.0,0.86114993]
[1752424569659,0.09504226,118630.0,118620.0,0.85914993]
[1752424569877,0.09504226,118630.0,118620.0,0.86014993]
[1752424571672,0.04956226,118630.0,118620.0,0.86014993]
[1752424571914,0.08666226,118630.0,118620.0,0.86014993]
[1752424573631,0.08990226,118630.0,118620.0,0.86014993]
[1752424577563,0.09204226,118630.0,118620.0,0.86014993]
[1752424577801,0.08990226,118630.0,118620.0,0.86014993]
[1752424580255,0.09204226,118630.0,118620.0,0.86014993]
[1752424583023,0.08990226,118630.0,118620.0,0.86014993]
[1752424588047,0.08990226,118630.0,118620.0,0.85855089]
[1752424590722,0.09196226,118630.0,118620.0,0.85855089]
[1752424591627,0.09196226,118630.0,118620.0,0.75355089]
[1752424592992,0.49917503,118630.0,118620.0,0.75355089]
[1752424593208,0.54417503,118630.0,118620.0,0.75355089]
[1752424593704,0.59417503,118630.0,118620.0,0.75355089]
[1752424594137,0.59417503,118630.0,118620.0,0.66812096]
[1752424594365,0.61944603,118630.0,118620.0,0.66812096]
[1752424599572,0.59417503,118630.0,118620.0,0.66812096]
[1752424599796,0.61944803,118630.0,118620.0,0.66812096]
[1752424600265,0.55223526,118630.0,118620.0,0.66812096]
[1752424603736,0.50223526,118630.0,118620.0,0.66812096]
[1752424603963,0.08990226,118630.0,118620.0,0.75355089]
[1752424604177,0.47166226,118630.0,118620.0,0.75355089]
[1752424608064,0.38956226,118630.0,118620.0,0.75355089]
[1752424608299,0.43456226,118630.0,118620.0,0.75355089]
[1752424609021,0.38956226,118630.0,118620.0,0.75355089]
[1752424609243,0.04906226,118630.0,118620.0,0.75355089]
[1752424609469,0.04906226,118630.0,118620.0,0.76935089]
[1752424610114,0.04906226,118630.0,118620.0,0.76245089]
[1752424610330,0.04906226,118630.0,118620.0,0.75355089]
[1752424613857,0.36690109,118630.0,118620.0,0.75355089]
[1752424614465,0.04906226,118630.0,118620.0,0.76935089]
[1752424615327,0.04906226,118630.0,118620.0,0.76835089]
[1752424615760,0.04906226,118630.0,118620.0,0.77040011]
[1752424616179,0.04906226,118630.0,118620.0,0.77340011]
[1752424617322,0.04906226,118630.0,118620.0,0.78794096]
[1752424618616,0.04906226,118630.0,118620.0,0.79760811]
[1752424618837,0.04064772,118630.0,118620.0,1.41114694]
[1752424619061,0.03223318,118630.0,118620.0,1.41114694]
[1752424619490,0.02381864,118630.0,118620.0,1.41114694]
[1752424619965,0.0154041,118630.0,118620.0,1.20922694]
[1752424620391,0.00698956,118630.0,118620.0,1.20922694]
[1752424620823,0.3850516,118650.0,118630.0,0.02894085]
[1752424621043,0.3851015,118650.0,118640.0,0.34453714]
[1752424621258,0.06726267,118650.0,118640.0,0.34242993]
[1752424621491,4.99e-05,118650.0,118640.0,0.68117993]
[1752424621745,4.99e-05,118650.0,118640.0,1.02795961]
[1752424622183,4.99e-05,118650.0,118640.0,0.71012078]
[1752424622401,4.99e-05,118650.0,118640.0,0.71017]
[1752424622839,4.99e-05,118650.0,118640.0,0.71217]
[1752424623287,4.99e-05,118650.0,118640.0,0.71417]
[1752424624162,3.9e-07,118650.0,118640.0,0.71417]
[1752424625044,0.35378922,118670.0,118640.0,0.71417]
[1752424625286,0.35383912,118670.0,118650.0,0.64958993]
[1752424625539,0.35383912,118670.0,118660.0,0.2572]
[1752424625762,0.35383912,118670.0,118660.0,0.34262993]
[1752424625976,0.35578912,118670.0,118660.0,0.68132993]
[1752424626407,0.35778912,118670.0,118660.0,0.68132993]
[1752424626829,0.35778912,118670.0,118660.0,0.68137915]
[1752424627243,0.35978912,118670.0,118660.0,0.68137915]
[1752424627662,0.35778912,118670.0,118660.0,0.68137915]
[1752424628354,0.36178912,118670.0,118660.0,0.68137915]
[1752424629436,0.04395029,118670.0,118660.0,0.68137915]
[1752424629648,0.36178912,118670.0,118660.0,0.68137915]
[1752424635482,0.0243499,118670.0,118660.0,0.68137915]
[1752424635683,0.32388873,118670.0,118660.0,0.68137915]
[1752424636335,0.0040499,118670.0,118660.0,0.68137915]
[1752424636552,0.32188873,118670.0,118660.0,0.68137915]
[1752424637218,0.0040499,118670.0,118660.0,0.68137915]
[1752424637451,0.31788873,118670.0,118660.0,0.68137915]
[1752424637879,0.31888873,118670.0,118660.0,0.68137915]
[1752424640996,0.0010499,118670.0,118660.0,0.68137915]
[1752424641218,0.0010499,118670.0,118660.0,0.69592]
[1752424641432,0.0010499,118670.0,118660.0,0.71022]
[1752424641642,0.0010499,118670.0,118660.0,0.71572]
[1752424642810,0.0010499,118670.0,118660.0,0.71022]
[1752424643009,0.0010499,118670.0,118660.0,0.69592]
[1752424643212,0.35678873,118670.0,118660.0,0.69592]
[1752424643722,0.36191873,118670.0,118660.0,0.68137915]
[1752424643865,0.4291315,118670.0,118660.0,0.68137915]
[1752424651502,0.36191873,118670.0,118660.0,0.68137915]
[1752424651704,0.35996873,118670.0,118660.0,0.68137915]
[1752424653575,0.0389499,118670.0,118660.0,0.68137915]
[1752424654226,0.09247077,118690.0,118660.0,0.69567915]
[1752424654227,0.33981883,118690.0,118660.0,0.69567915]
[1752424654436,0.36601883,118690.0,118670.0,0.34481661]
[1752424654647,0.33663883,118680.0,118670.0,0.08542993]
[1752424654875,0.0188,118680.0,118670.0,0.68348661]
[1752424655082,0.0188,118680.0,118670.0,0.68137993]
[1752424655264,0.34051883,118690.0,118670.0,0.68137993]
[1752424655501,0.68051883,118690.0,118680.0,0.2594665]
[1752424655714,0.68259883,118690.0,118680.0,0.34278993]
[1752424655892,0.68259883,118690.0,118680.0,0.68142993]
[1752424656372,0.72759883,118690.0,118680.0,0.68142993]
[1752424656556,0.72759883,118690.0,118680.0,0.68147915]
[1752424657008,0.72859883,118690.0,118680.0,0.68147915]
[1752424657219,0.70319883,118690.0,118680.0,0.68147915]
[1752424657424,0.74819883,118690.0,118680.0,0.68147915]
[1752424657633,0.74919883,118690.0,118680.0,0.68147915]
[1752424658630,0.75870661,118690.0,118680.0,0.68147915]
[1752424660383,0.3811,118690.0,118680.0,0.68147915]
[1752424660573,0.69893883,118690.0,118680.0,0.68147915]
[1752424660958,0.70211883,118690.0,118680.0,0.68147915]
[1752424661357,0.36211883,118690.0,118680.0,0.68147915]
[1752424662817,0.36211883,118690.0,118680.0,0.88331915]
[1752424664164,0.35370766,118690.0,118680.0,0.88331915]
[1752424664365,0.35578766,118690.0,118680.0,0.88331915]
[1752424670939,0.03794883,118690.0,118680.0,0.88331915]
[1752424671143,0.35578766,118690.0,118680.0,0.88331915]
[1752424676117,0.03794883,118690.0,118680.0,0.88331915]
[1752424676359,0.35578766,118690.0,118680.0,0.88331915]
[1752424704960,0.51432445,118690.0,118680.0,0.88331915]
[1752424707754,0.86972503,118690.0,118680.0,0.88331915]
[1752424707967,1.25472503,118690.0,118680.0,0.88331915]
[1752424709062,1.17556274,118690.0,118680.0,0.88331915]
[1752424712010,1.20082074,118690.0,118680.0,0.88331915]
[1752424712999,1.20082074,118690.0,118680.0,0.79788922]
[1752424713211,1.20082074,118690.0,118680.0,0.54052922]
[1752424713417,1.20082074,118690.0,118680.0,0.66896922]
[1752424725296,1.13360797,118690.0,118680.0,0.66896922]
[1752424725736,0.8159074,118690.0,118680.0,0.66896922]
[1752424725950,1.13360797,118690.0,118680.0,0.66896922]
[1752424726594,0.8159074,118690.0,118680.0,0.66896922]
[1752424726816,1.13360797,118690.0,118680.0,0.66896922]
[1752424731890,1.08360797,118690.0,118680.0,0.66896922]
[1752424732328,0.70455857,118690.0,118680.0,0.75439915]
[1752424732541,0.67930057,118690.0,118680.0,0.75439915]
[1752424732744,0.72430057,118690.0,118680.0,0.75439915]
[1752424734638,0.65970057,118690.0,118680.0,0.75439915]
[1752424734848,0.70470057,118690.0,118680.0,0.75439915]
[1752424735473,0.36470057,118690.0,118680.0,0.77229915]
[1752424736793,0.31970057,118690.0,118680.0,0.77229915]
[1752424737019,0.31970057,118690.0,118680.0,0.78279915]
[1752424737513,0.70270057,118710.0,118690.0,0.0179]
[1752424737753,0.70285028,118710.0,118700.0,0.34433607]
[1752424737995,0.00014971,118710.0,118700.0,0.69870993]
[1752424738232,0.31785028,118710.0,118700.0,0.70920993]
[1752424738649,0.31885028,118710.0,118700.0,0.70920993]
[1752424739079,0.31785028,118710.0,118700.0,0.70925915]
[1752424739452,0.31885028,118710.0,118700.0,0.70925915]
[1752424739871,0.31985028,118710.0,118700.0,0.70925915]
[1752424740278,0.31885028,118710.0,118700.0,0.70925915]
[1752424740879,0.31985028,118710.0,118700.0,0.70925915]
[1752424742787,0.0004,118720.0,118710.0,0.0178]
[1752424742996,0.31859951,118720.0,118710.0,0.3725959]
[1752424743218,0.31859951,118720.0,118710.0,0.70903993]
[1752424743450,0.31859951,118720.0,118710.0,0.70908915]
[1752424744114,0.31859951,118720.0,118710.0,0.73397883]
[1752424744326,0.31859951,118720.0,118710.0,0.72347883]
[1752424744991,0.00089894,118720.0,118710.0,0.72347883]
[1752424745201,0.31859951,118720.0,118710.0,0.72347883]
[1752424745797,0.31859951,118720.0,118710.0,0.70567883]
[1752424746536,0.31859951,118720.0,118710.0,0.70667883]
[1752424746970,0.31859951,118720.0,118710.0,0.70647883]
[1752424748824,0.31859951,118720.0,118710.0,0.72427883]
[1752424750059,0.31859951,118720.0,118710.0,0.72438583]
[1752424750988,0.31859951,118720.0,118710.0,0.70658583]
[1752424751611,0.67693008,118720.0,118710.0,0.70658583]
[1752424752483,0.72193008,118720.0,118710.0,0.70658583]
[1752424752967,1.42963065,118720.0,118710.0,0.53825622]
[1752424753171,1.42963065,118720.0,118710.0,0.66661622]
[1752424753385,1.13062916,118720.0,118710.0,0.66661622]
[1752424754249,1.13062916,118720.0,118710.0,0.66561622]
[1752424755429,1.13262916,118720.0,118710.0,0.66561622]
[1752424755663,1.11393008,118720.0,118710.0,0.66561622]
[1752424756591,1.43163065,118720.0,118710.0,0.66561622]
[1752424757027,1.43063065,118720.0,118710.0,0.66561622]
[1752424757241,1.43263065,118720.0,118710.0,0.66561622]
[1752424757452,1.11493008,118720.0,118710.0,0.66561622]
[1752424760251,1.16542008,118720.0,118710.0,0.66561622]
[1752424760451,1.48312065,118720.0,118710.0,0.66561622]
[1752424761077,1.45788665,118720.0,118710.0,0.66561622]
[1752424761634,1.14018608,118720.0,118710.0,0.66561622]
[1752424762664,1.09018608,118720.0,118710.0,0.66561622]
[1752424763064,1.14018608,118720.0,118710.0,0.66561622]
[1752424764320,1.04518608,118720.0,118710.0,0.66561622]
[1752424764532,0.69925951,118720.0,118710.0,0.75311615]
[1752424764745,1.01696008,118720.0,118710.0,0.75311615]
[1752424764922,1.06196008,118720.0,118710.0,0.75311615]
[1752424767013,1.06196008,118720.0,118710.0,0.75104615]
[1752424767232,1.06519008,118720.0,118710.0,0.75104615]
[1752424767443,1.11519008,118720.0,118710.0,0.75104615]
[1752424784771,1.43289065,118720.0,118710.0,0.66561622]
[1752424785219,1.11519008,118720.0,118710.0,0.66561622]
[1752424790270,1.14044508,118720.0,118710.0,0.66561622]
[1752424790480,1.11519008,118720.0,118710.0,0.66561622]
[1752424790707,1.11319008,118720.0,118710.0,0.66561622]
[1752424790894,1.11519008,118720.0,118710.0,0.66561622]
[1752424791337,1.14044408,118720.0,118710.0,0.66561622]
[1752424791972,1.13944408,118720.0,118710.0,0.66561622]
[1752424792198,1.14144408,118720.0,118710.0,0.66561622]
[1752424796609,1.45914465,118720.0,118710.0,0.66561622]
[1752424797257,1.14144408,118720.0,118710.0,0.66561622]
[1752424799184,1.45914465,118720.0,118710.0,0.66561622]
[1752424799391,1.14144408,118720.0,118710.0,0.66561622]
[1752424806674,1.45914465,118720.0,118710.0,0.66561622]
[1752424808800,1.84506458,118720.0,118710.0,0.79389622]
[1752424818016,1.87054691,118720.0,118710.0,0.79389622]
[1752424837023,2.3469506,118720.0,118710.0,0.79389622]
[1752424856432,2.3429506,118720.0,118710.0,0.79389622]
[1752424856666,2.3479506,118720.0,118710.0,0.79389622]
[1752424859740,2.32699145,118720.0,118680.0,0.02204]
[1752424859948,0.385,118680.0,118670.0,0.03184]
[1752424860162,1.0997527,118680.0,118670.0,0.23277]
[1752424860613,1.1250137,118680.0,118670.0,0.23277]
[1752424860825,1.1250137,118680.0,118670.0,0.23581]
[1752424861085,1.1250137,118680.0,118670.0,0.23277]
[1752424861289,0.4722,118660.0,118650.0,0.20188]
[1752424861506,1.9017054,118660.0,118650.0,0.33008]
[1752424861723,1.9058654,118660.0,118650.0,0.20188]
[1752424862004,1.99129533,118660.0,118650.0,0.33008]
[1752424862189,2.29178533,118660.0,118650.0,0.33008]
[1752424862424,2.28978533,118660.0,118650.0,0.33108]
[1752424862865,2.28978533,118660.0,118650.0,0.33008]
[1752424863148,0.74981152,118660.0,118650.0,0.33521]
[1752424863341,0.71081152,118660.0,118650.0,0.33521]
[1752424863558,0.75681152,118660.0,118650.0,0.33521]
[1752424863768,0.71481152,118660.0,118650.0,0.33521]
[1752424863981,0.70681152,118660.0,118650.0,0.33521]
[1752424864199,0.75681152,118660.0,118650.0,0.33521]
[1752424864420,0.71481152,118660.0,118650.0,0.33521]
[1752424864630,0.78207752,118660.0,118650.0,0.33521]
[1752424864861,0.77907752,118660.0,118650.0,0.33521]
[1752424865272,0.78007752,118660.0,118650.0,0.33521]
[1752424866146,0.77607752,118660.0,118650.0,0.33521]
[1752424866567,0.77707752,118660.0,118650.0,0.33521]
[1752424868347,0.77707752,118660.0,118650.0,0.33217]
[1752424869244,1.09488904,118660.0,118650.0,0.33217]
[1752424869453,1.10004904,118660.0,118650.0,0.33217]
[1752424870113,1.13664904,118660.0,118650.0,0.33008]
[1752424870553,0.77707752,118660.0,118650.0,0.33521]
[1752424871215,0.72707752,118660.0,118650.0,0.33521]
[1752424871439,0.77707752,118660.0,118650.0,0.33521]
[1752424874025,0.77707752,118660.0,118650.0,0.33217]
[1752424878543,0.79507752,118660.0,118650.0,0.33217]
[1752424879412,0.81580752,118660.0,118650.0,0.33217]
[1752424879626,0.81893752,118660.0,118650.0,0.33217]
[1752424880243,1.13674904,118660.0,118650.0,0.33217]
[1752424881933,0.81893752,118660.0,118650.0,0.33217]
[1752424882133,0.79710752,118660.0,118650.0,0.33217]
[1752424883016,0.79507752,118660.0,118650.0,0.33217]
[1752424883931,0.77707752,118660.0,118650.0,0.33217]
[1752424891965,0.79597752,118660.0,118650.0,0.33217]
[1752424892168,0.81527752,118660.0,118650.0,0.33217]
[1752424893435,0.79597752,118660.0,118650.0,0.33217]
[1752424893651,0.68507752,118660.0,118650.0,0.42077993]
[1752424893884,0.68507752,118660.0,118650.0,0.45377993]
[1752424894125,0.38707752,118660.0,118650.0,0.45377993]
[1752424894774,0.36181152,118660.0,118650.0,0.45377993]
[1752424894997,0.002,118660.0,118650.0,0.45377993]
[1752424895449,0.001,118660.0,118650.0,0.45377993]
[1752424895879,0.35981152,118670.0,118660.0,0.032]
[1752424896092,0.35981152,118670.0,118660.0,0.11943993]
[1752424896315,0.31781152,118670.0,118660.0,0.12261993]
[1752424896536,0.35981152,118670.0,118660.0,0.12261993]
[1752424897172,0.31781152,118670.0,118660.0,0.12261993]
[1752424897393,0.35981152,118670.0,118660.0,0.12261993]
[1752424897848,0.35981152,118670.0,118660.0,0.14818363]
[1752424900051,0.042,118670.0,118660.0,0.14818363]
[1752424900260,0.35981152,118670.0,118660.0,0.14818363]
[1752424902106,0.31781152,118670.0,118660.0,0.14818363]
[1752424902321,0.35981152,118670.0,118660.0,0.14818363]
[1752424902511,0.31781152,118670.0,118660.0,0.14818363]
[1752424902740,0.68307052,118680.0,118660.0,0.15029048]
[1752424902958,0.65781152,118680.0,118670.0,0.24880993]
[1752424903167,0.69981152,118680.0,118670.0,0.25081993]
[1752424904690,0.65881152,118680.0,118670.0,0.25081993]
[1752424904911,0.70081152,118680.0,118670.0,0.25081993]
[1752424905101,0.65881152,118680.0,118670.0,0.25081993]
[1752424905338,0.70181152,118680.0,118670.0,0.25081993]
[1752424908687,0.70181152,118680.0,118670.0,0.23741993]
[1752424908896,0.65981152,118680.0,118670.0,0.23741993]
[1752424909215,0.70181152,118680.0,118670.0,0.23741993]
[1752424914649,0.384,118680.0,118670.0,0.23741993]
[1752424914859,0.70181152,118680.0,118670.0,0.23741993]
[1752424915682,0.70181152,118680.0,118670.0,0.21881993]
[1752424917774,0.70181152,118680.0,118670.0,0.21563993]
[1752424917974,0.74031152,118680.0,118670.0,0.21563993]
[1752424925610,1.06309304,118680.0,118670.0,0.34170993]
[1752424925868,1.11309304,118680.0,118670.0,0.34170993]
[1752424927502,1.11309304,118680.0,118670.0,0.54358993]
[1752424929178,0.79528152,118680.0,118670.0,0.54358993]
[1752424929378,0.74031152,118680.0,118670.0,0.54571993]
[1752424930059,0.77081152,118680.0,118670.0,0.54571993]
[1752424930273,1.11239304,118680.0,118670.0,0.54358993]
[1752424948217,0.73961152,118680.0,118670.0,0.54555993]
[1752424948430,0.453,118680.0,118670.0,0.54555993]
[1752424948638,0.77081152,118680.0,118670.0,0.54555993]
[1752424950843,0.72081152,118680.0,118670.0,0.54555993]
[1752424951065,0.77081152,118680.0,118670.0,0.54555993]
[1752424951326,0.72081152,118680.0,118670.0,0.54555993]
[1752424952385,0.77081152,118680.0,118670.0,0.54555993]
[1752424953168,0.72081152,118680.0,118670.0,0.54555993]
[1752424953792,0.77081152,118680.0,118670.0,0.54555993]
[1752424955167,0.79041152,118680.0,118670.0,0.54555993]
[1752424960582,0.65981152,118680.0,118670.0,0.54871993]
[1752424960852,0.70181152,118680.0,118670.0,0.54871993]
[1752424961072,0.65981152,118680.0,118670.0,0.54871993]
[1752424961277,0.70181152,118680.0,118670.0,0.54871993]
[1752424961759,0.65981152,118680.0,118670.0,0.54871993]
[1752424961991,0.65981152,118680.0,118670.0,0.88576993]
[1752424962883,0.70181152,118680.0,118670.0,0.88576993]
[1752424963309,0.65981152,118680.0,118670.0,0.88576993]
[1752424963529,0.70181152,118680.0,118670.0,0.88576993]
[1752424963973,0.65981152,118680.0,118670.0,0.88576993]
[1752424964187,0.70181152,118680.0,118670.0,0.88576993]
[1752424964679,0.70181152,118680.0,118670.0,0.88260993]
[1752424965598,0.72051152,118680.0,118670.0,0.88260993]
[1752424966252,0.74207152,118680.0,118670.0,0.88260993]
[1752424966475,1.06306304,118680.0,118670.0,0.88063993]
[1752424969809,1.06306304,118680.0,118670.0,0.62435993]
[1752424970029,1.11306304,118680.0,118670.0,0.75239993]
[1752424970699,1.11306304,118680.0,118670.0,0.62435993]
[1752424970961,1.11306304,118680.0,118670.0,0.75239993]
[1752424976587,1.11306304,118680.0,118670.0,0.66697]
[1752424977122,1.13832604,118680.0,118670.0,0.66697]
[1752424980909,1.18881604,118680.0,118670.0,0.66697]
[1752424981124,1.13832604,118680.0,118670.0,0.66697]
[1752424982455,1.08832604,118680.0,118670.0,0.66697]
[1752424982680,1.13832604,118680.0,118670.0,0.66697]
[1752424983140,0.77051452,118680.0,118670.0,0.66913]
[1752424983582,0.82051452,118680.0,118670.0,0.66913]
[1752424983797,0.77051452,118680.0,118670.0,0.66913]
[1752424984226,1.13832604,118680.0,118670.0,0.66913]
[1752424984451,1.13832604,118680.0,118670.0,0.66697]
[1752424989030,1.08832604,118680.0,118670.0,0.66697]
[1752424989253,0.77317452,118680.0,118670.0,0.75455993]
[1752424989473,0.79577452,118680.0,118670.0,0.75455993]
[1752424989691,0.77051152,118680.0,118670.0,0.75455993]
[1752424989928,0.094,118680.0,118670.0,0.77639993]
[1752424990144,0.41181152,118680.0,118670.0,0.75779993]
[1752424990357,0.75181152,118680.0,118670.0,0.75779993]
[1752424992587,0.75181152,118680.0,118670.0,0.75455993]
[1752424994710,0.70181152,118680.0,118670.0,0.75455993]
[1752424994920,0.65981152,118680.0,118670.0,0.75779993]
[1752424996097,0.65981152,118680.0,118670.0,0.77049993]
[1752424996241,0.65981152,118680.0,118670.0,0.78389993]
[1752424996855,0.65981152,118680.0,118670.0,0.77049993]
[1752424997074,0.384,118680.0,118670.0,0.75779993]
[1752424997288,0.70181152,118680.0,118670.0,0.75779993]
[1752424997832,0.65981152,118680.0,118670.0,0.75779993]
[1752424998277,0.70181152,118680.0,118670.0,0.75779993]
[1752425002295,0.65981152,118680.0,118670.0,0.75779993]
[1752425002500,0.70181152,118680.0,118670.0,0.75779993]